fUST/lending_fUST_20260107
["ID","MTS","AMOUNT","RATE_DAILY","PERIOD"]
[400664238,1767775844032,-500.0,0.00027397,2]
[400664240,1767775844043,-500.0,0.00027397,2]
[400664242,1767775844052,-500.0,0.00027397,2]
[400664244,1767775844061,-500.0,0.00027397,2]
[400664246,1767775844070,-500.0,0.00027397,2]
[400664248,1767775844081,-546.87196648,0.00027397,2]
[400664250,1767775844090,-266.0311333,0.00027397,2]
[400664252,1767775844099,-500.0,0.00027397,2]
[400664254,1767775844108,-574.83927761,0.00027397,2]
[400664256,1767775844117,-500.0,0.00027397,2]
[400664258,1767775844127,-500.0,0.00027397,2]
[400664260,1767775844137,-500.0,0.00027397,2]
[400664262,1767775844146,-500.0,0.00027397,2]
[400664263,1767775844156,-500.0,0.00027397,2]
[400664265,1767775844166,-500.0,0.00027397,2]
[400664267,1767775844175,-489.4825677,0.00027397,2]
[400664269,1767775844184,-285.44153399,0.00027397,2]
[400664271,1767775844194,-500.0,0.00027397,2]
[400664273,1767775844204,-500.0,0.00027397,2]
[400664275,1767775844213,-500.0,0.00027397,2]
[400664277,1767775844224,-425.02340228,0.00027397,2]
[400664279,1767775844233,-500.0,0.00027397,2]
[400664281,1767775844243,-500.0,0.00027397,2]
[400664283,1767775844252,-500.0,0.00027397,2]
[400664285,1767775844261,-500.0,0.00027397,2]
[400664287,1767775844271,-206.40672607,0.00027397,2]
[400664289,1767775844280,-500.0,0.00027397,2]
[400664291,1767775844289,-500.0,0.00027397,2]
[400664293,1767775844299,-565.79664232,0.00027397,2]
[400664296,1767775844311,-500.0,0.00027397,2]
[400664298,1767775844321,-500.0,0.00027397,2]
[400664300,1767775844330,-500.0,0.00027397,2]
[400664302,1767775844340,-500.0,0.00027397,2]
[400664304,1767775844350,-460.75990773,0.00027397,2]
[400664306,1767775844359,-500.0,0.00027397,2]
[400664307,1767775844369,-220.85995408,0.00027397,2]
[400664310,1767775844379,-500.0,0.00027397,2]
[400664311,1767775844388,-500.0,0.00027397,2]
[400664313,1767775844400,-500.0,0.00027397,2]
[400664315,1767775844410,-500.0,0.00027397,2]
[400664317,1767775844419,-500.0,0.00027397,2]
[400664319,1767775844428,-548.31395731,0.00027397,2]
[400664321,1767775844438,-500.0,0.00027397,2]
[400664324,1767775844449,-582.84,0.00027397,2]
[400664326,1767775844459,-283.23572878,0.00027397,2]
[400664327,1767775844469,-500.0,0.00027397,2]
[400664329,1767775844479,-500.0,0.00027397,2]
[400664331,1767775844489,-1000.0,0.00027397,2]
[400664333,1767775844499,-500.0,0.00027397,2]
[400664335,1767775844508,-558.54756524,0.00027397,2]
[400664337,1767775844517,-500.0,0.00027397,2]
[400664350,1767775844622,-500.0,0.00027397,2]
[400664352,1767775844633,-500.0,0.00027397,2]
[400664354,1767775844643,-500.0,0.00027397,2]
[400664356,1767775844654,-302.57630642,0.00027397,2]
[400664358,1767775844662,-500.0,0.00027397,2]
[400664360,1767775844672,-482.03771904,0.00027397,2]
[400664362,1767775844682,-500.0,0.00027397,2]
[400664364,1767775844692,-500.0,0.00027397,2]
[400664366,1767775844702,-247.13704259,0.00027397,2]
[400664368,1767775844711,-500.0,0.00027397,2]
[400664370,1767775844726,-500.0,0.00027397,2]
[400664372,1767775844744,-500.0,0.00027397,2]
[400664374,1767775844754,-500.0,0.00027397,2]
[400664376,1767775844764,-487.15250721,0.00027397,2]
[400664378,1767775844773,-500.0,0.00027397,2]
[400664380,1767775844783,-231.38579924,0.00027397,2]
[400664382,1767775844792,-496.70020353,0.00027397,2]
[400664384,1767775844801,-500.0,0.00027397,2]
[400664386,1767775844810,-353.312555,0.00027397,2]
[400664388,1767775844819,-500.0,0.00027397,2]
[400664390,1767775844829,-500.0,0.00027397,2]
[400664392,1767775844838,-913.08,0.00027397,2]
[400664394,1767775844848,-500.0,0.00027397,2]
[400664395,1767775844858,-500.0,0.00027397,2]
[400664397,1767775844867,-565.35155134,0.00027397,2]
[400664399,1767775844877,-500.0,0.00027397,2]
[400664401,1767775844886,-533.03275713,0.00027397,2]
[400664403,1767775844896,-378.27229026,0.00027397,2]
[400664405,1767775844906,-500.0,0.00027397,2]
[400664407,1767775844915,-500.0,0.00027397,2]
[400664409,1767775844925,-500.0,0.00027397,2]
[400664411,1767775844934,-567.74134329,0.00027397,2]
[400664414,1767775844944,-571.86771589,0.00027397,2]
[400664416,1767775844954,-500.0,0.00027397,2]
[400664418,1767775844963,-500.0,0.00027397,2]
[400664420,1767775844972,-500.0,0.00027397,2]
[400664421,1767775844981,-500.0,0.00027397,2]
[400664423,1767775844990,-500.0,0.00027397,2]
[400664425,1767775844999,-323.54612143,0.00027397,2]
[400664427,1767775845008,-500.0,0.00027397,2]
[400664429,1767775845016,-538.91545747,0.00027397,2]
[400664431,1767775845026,-421.02480079,0.00027397,2]
[400664433,1767775845035,-500.0,0.00027397,2]
[400664435,1767775845044,-500.0,0.00027397,2]
[400664437,1767775845053,-567.9849075,0.00027397,2]
[400664439,1767775845062,-429.3256291,0.00027397,2]
[400664441,1767775845071,-411.68091884,0.00027397,2]
[400664443,1767775845080,-500.0,0.00027397,2]
[400664445,1767775845090,-397.00088279,0.00027397,2]
[400664447,1767775845099,-500.0,0.00027397,2]
[400664449,1767775845109,-500.0,0.00027397,2]
[400664451,1767775845118,-257.75144665,0.00027397,2]
[400664453,1767775845127,-500.0,0.00027397,2]
[400664455,1767775845136,-500.0,0.00027397,2]
[400664457,1767775845145,-500.0,0.00027397,2]
[400664459,1767775845155,-457.91232299,0.00027397,2]
[400664461,1767775845164,-500.0,0.00027397,2]
[400664463,1767775845173,-500.0,0.00027397,2]
[400664465,1767775845182,-500.0,0.00027397,2]
[400664467,1767775845191,-518.82361923,0.00027397,2]
[400664469,1767775845199,-500.0,0.00027397,2]
[400664471,1767775845208,-500.0,0.00027397,2]
[400664473,1767775845217,-500.0,0.00027397,2]
[400664475,1767775845227,-500.0,0.00027397,2]
[400664477,1767775845235,-393.32959088,0.00027397,2]
[400664479,1767775845244,-509.97091486,0.00027397,2]
[400664481,1767775845253,-361.04143235,0.00027397,2]
[400664483,1767775845262,-500.0,0.00027397,2]
[400664485,1767775845271,-1000.0,0.00027397,2]
[400664488,1767775845280,-500.0,0.00027397,2]
[400664491,1767775845289,-500.0,0.00027397,2]
[400664494,1767775845298,-397.14508349,0.00027397,2]
[400664497,1767775845307,-500.0,0.00027397,2]
[400664502,1767775845326,-500.0,0.00027397,2]
[400664505,1767775845337,-500.0,0.00027397,2]
[400664508,1767775845346,-517.01871719,0.00027397,2]
[400664511,1767775845356,-274.78199584,0.00027397,2]
[400664514,1767775845367,-500.0,0.00027397,2]
[400664517,1767775845376,-500.0,0.00027397,2]
[400664519,1767775845386,-500.0,0.00027397,2]
[400664521,1767775845396,-504.72287872,0.00027397,2]
[400664523,1767775845406,-566.66989012,0.00027397,2]
[400664525,1767775845416,-500.0,0.00027397,2]
[400664527,1767775845426,-500.0,0.00027397,2]
[400664529,1767775845436,-164.8466183,0.00027397,2]
[400664531,1767775845445,-500.0,0.00027397,2]
[400664533,1767775845455,-500.0,0.00027397,2]
[400664535,1767775845466,-565.76829321,0.00027397,2]
[400664537,1767775845476,-500.0,0.00027397,2]
[400664539,1767775845485,-500.0,0.00027397,2]
[400664541,1767775845495,-500.0,0.00027397,2]
[400664543,1767775845504,-480.41975781,0.00027397,2]
[400664545,1767775845514,-500.0,0.00027397,2]
[400664547,1767775845524,-500.0,0.00027397,2]
[400664549,1767775845534,-500.0,0.00027397,2]
[400664551,1767775845544,-191.0,0.00027397,2]
[400664553,1767775845554,-500.0,0.00027397,2]
[400664556,1767775845565,-500.0,0.00027397,2]
[400664558,1767775845575,-185.72944567,0.00027397,2]
[400664560,1767775845584,-513.83486769,0.00027397,2]
[400664562,1767775845594,-500.0,0.00027397,2]
[400664564,1767775845603,-500.0,0.00027397,2]
[400664566,1767775845613,-218.86382134,0.00027397,2]
[400664568,1767775845622,-500.0,0.00027397,2]
[400664570,1767775845632,-500.0,0.00027397,2]
[400664572,1767775845642,-500.0,0.00027397,2]
[400664574,1767775845652,-500.0,0.00027397,2]
[400664576,1767775845661,-459.71283558,0.00027397,2]
[400664578,1767775845670,-500.0,0.00027397,2]
[400664580,1767775845680,-369.84563094,0.00027397,2]
[400664582,1767775845690,-500.0,0.00027397,2]
[400664584,1767775845699,-500.0,0.00027397,2]
[400664586,1767775845709,-500.0,0.00027397,2]
[400664588,1767775845721,-467.04427797,0.00027397,2]
[400664590,1767775845732,-266.46290101,0.00027397,2]
[400664592,1767775845742,-756.53,0.00027397,2]
[400664594,1767775845751,-221.6668596,0.00027397,2]
[400664596,1767775845760,-296.57482557,0.00027397,2]
[400664598,1767775845770,-500.0,0.00027397,2]
[400664600,1767775845779,-318.72988081,0.00027397,2]
[400664603,1767775845788,-500.0,0.00027397,2]
[400664606,1767775845798,-500.0,0.00027397,2]
[400664609,1767775845808,-500.0,0.00027397,2]
[400664611,1767775845818,-248.88132045,0.00027397,2]
[400664613,1767775845828,-500.0,0.00027397,2]
[400664615,1767775845837,-509.29429867,0.00027397,2]
[400664617,1767775845846,-500.0,0.00027397,2]
[400664620,1767775845855,-500.0,0.00027397,2]
[400664623,1767775845864,-500.0,0.00027397,2]
[400664626,1767775845874,-500.0,0.00027397,2]
[400664629,1767775845883,-500.0,0.00027397,2]
[400664632,1767775845893,-300.51321961,0.00027397,2]
[400664635,1767775845902,-195.03199849,0.00027397,2]
[400664637,1767775845912,-500.0,0.00027397,2]
[400664640,1767775845922,-500.0,0.00027397,2]
[400664642,1767775845932,-202.31547305,0.00027397,2]
[400664644,1767775845941,-523.60697497,0.00027397,2]
[400664646,1767775845950,-500.0,0.00027397,2]
[400664648,1767775845959,-484.89464713,0.00027397,2]
[400664650,1767775845969,-430.45190106,0.00027397,2]
[400664652,1767775845978,-285.61445838,0.00027397,2]
[400664654,1767775845988,-477.66225869,0.00027397,2]
[400664656,1767775845998,-500.0,0.00027397,2]
[400664658,1767775846009,-474.29098556,0.00027397,2]
[400664659,1767775846019,-452.50526344,0.00027397,2]
[400664661,1767775846029,-500.0,0.00027397,2]
[400664663,1767775846039,-200.0,0.00027397,2]
[400664665,1767775846048,-500.0,0.00027397,2]
[400664667,1767775846058,-500.0,0.00027397,2]
[400664669,1767775846067,-500.0,0.00027397,2]
[400664671,1767775846077,-399.37825281,0.00027397,2]
[400664673,1767775846087,-248.43549286,0.00027397,2]
[400664675,1767775846096,-500.0,0.00027397,2]
[400664677,1767775846105,-454.06231089,0.00027397,2]
[400664679,1767775846115,-500.0,0.00027397,2]
[400664681,1767775846124,-513.07286312,0.00027397,2]
[400664683,1767775846133,-471.39829619,0.00027397,2]
[400664685,1767775846143,-500.0,0.00027397,2]
[400664687,1767775846152,-500.0,0.00027397,2]
[400664689,1767775846162,-287.99941463,0.00027397,2]
[400664691,1767775846171,-500.0,0.00027397,2]
[400664693,1767775846181,-593.0958547,0.00027397,2]
[400664695,1767775846190,-500.0,0.00027397,2]
[400664697,1767775846304,-271.44586454,0.00027397,2]
[400664699,1767775846315,-269.29132722,0.00027397,2]
[400664701,1767775846324,-500.0,0.00027397,2]
[400664703,1767775846334,-500.0,0.00027397,2]
[400664705,1767775846343,-500.0,0.00027397,2]
[400664707,1767775846353,-536.67131664,0.00027397,2]
[400664709,1767775846362,-500.0,0.00027397,2]
[400664711,1767775846372,-460.4,0.00027397,2]
[400664713,1767775846381,-502.52642032,0.00027397,2]
[400664715,1767775846391,-453.49823966,0.00027397,2]
[400664717,1767775846401,-500.68429147,0.00027397,2]
[400664719,1767775846410,-500.0,0.00027397,2]
[400664721,1767775846420,-500.0,0.00027397,2]
[400664723,1767775846429,-500.0,0.00027397,2]
[400664725,1767775846438,-500.0,0.00027397,2]
[400664727,1767775846447,-500.0,0.00027397,2]
[400664729,1767775846457,-500.0,0.00027397,2]
[400664731,1767775846466,-500.0,0.00027397,2]
[400664733,1767775846476,-500.0,0.00027397,2]
[400664735,1767775846485,-500.0,0.00027397,2]
[400664737,1767775846495,-500.0,0.00027397,2]
[400664739,1767775846505,-287.87151555,0.00027397,2]
[400664741,1767775846515,-221.99154029,0.00027397,2]
[400664743,1767775846525,-500.0,0.00027397,2]
[400664745,1767775846534,-500.0,0.00027397,2]
[400664747,1767775846543,-575.86198463,0.00027397,2]
[400664749,1767775846552,-500.0,0.00027397,2]
[400664751,1767775846561,-500.0,0.00027397,2]
[400664753,1767775846570,-500.0,0.00027397,2]
[400664756,1767775846582,-500.0,0.00027397,2]
[400664758,1767775846591,-312.21609013,0.00027397,2]
[400664759,1767775846602,-500.0,0.00027397,2]
[400664761,1767775846612,-371.09090696,0.00027397,2]
[400664764,1767775846622,-500.0,0.00027397,2]
[400664766,1767775846631,-554.99626701,0.00027397,2]
[400664768,1767775846640,-500.0,0.00027397,2]
[400664769,1767775846650,-500.0,0.00027397,2]
[400664771,1767775846659,-500.0,0.00027397,2]
[400664773,1767775846668,-500.0,0.00027397,2]
[400664775,1767775846678,-322.62449599,0.00027397,2]
[400664778,1767775846687,-208.00138522,0.00027397,2]
[400664779,1767775846696,-479.11138283,0.00027397,2]
[400664781,1767775846705,-500.0,0.00027397,2]
[400664783,1767775846715,-500.0,0.00027397,2]
[400664785,1767775846728,-3991.84,0.00027397,2]
[400664787,1767775846738,-523.62028016,0.00027397,2]
[400664789,1767775846747,-299.91358732,0.00027397,2]
[400664791,1767775846756,-500.0,0.00027397,2]
[400664793,1767775846768,-491.15587714,0.00027397,2]
[400664796,1767775846778,-500.0,0.00027397,2]
[400664797,1767775846788,-500.0,0.00027397,2]
[400664799,1767775846799,-500.0,0.00027397,2]
[400664801,1767775846808,-500.0,0.00027397,2]
[400664804,1767775846818,-500.0,0.00027397,2]
[400664806,1767775846828,-440.46983605,0.00027397,2]
[400664808,1767775846838,-161.89891017,0.00027397,2]
[400664809,1767775846847,-500.0,0.00027397,2]
[400664812,1767775846856,-500.0,0.00027397,2]
[400664814,1767775846866,-500.0,0.00027397,2]
[400664816,1767775846875,-278.39946279,0.00027397,2]
[400664818,1767775846884,-500.0,0.00027397,2]
[400664820,1767775846894,-500.0,0.00027397,2]
[400664822,1767775846903,-494.14749146,0.00027397,2]
[400664824,1767775846913,-500.0,0.00027397,2]
[400664825,1767775846922,-500.0,0.00027397,2]
[400664827,1767775846931,-500.0,0.00027397,2]
[400664829,1767775846940,-500.0,0.00027397,2]
[400664831,1767775846949,-500.0,0.00027397,2]
[400664833,1767775846958,-299.23162821,0.00027397,2]
[400664835,1767775846967,-500.0,0.00027397,2]
[400664837,1767775846977,-500.0,0.00027397,2]
[400664839,1767775846986,-500.0,0.00027397,2]
[400664841,1767775846995,-500.0,0.00027397,2]
[400664843,1767775847004,-500.0,0.00027397,2]
[400664845,1767775847013,-500.0,0.00027397,2]
[400664847,1767775847022,-500.0,0.00027397,2]
[400664849,1767775847032,-500.0,0.00027397,2]
[400664851,1767775847041,-725.03,0.00027397,2]
[400664853,1767775847050,-500.0,0.00027397,2]
[400664855,1767775847060,-308.74291557,0.00027397,2]
[400664857,1767775847069,-500.0,0.00027397,2]
[400664859,1767775847078,-500.0,0.00027397,2]
[400664861,1767775847087,-500.0,0.00027397,2]
[400664863,1767775847097,-500.0,0.00027397,2]
[400664865,1767775847107,-500.0,0.00027397,2]
[400664867,1767775847116,-500.0,0.00027397,2]
[400664869,1767775847125,-500.0,0.00027397,2]
[400664871,1767775847135,-505.81393525,0.00027397,2]
[400664873,1767775847144,-500.0,0.00027397,2]
[400664875,1767775847153,-315.73155468,0.00027397,2]
[400664877,1767775847162,-500.0,0.00027397,2]
[400664879,1767775847171,-427.62515134,0.00027397,2]
[400664881,1767775847181,-836.74,0.00027397,2]
[400664883,1767775847190,-500.0,0.00027397,2]
[400664885,1767775847199,-552.48388047,0.00027397,2]
[400664887,1767775847208,-500.0,0.00027397,2]
[400664889,1767775847218,-215.58317128,0.00027397,2]
[400664891,1767775847227,-531.43503261,0.00027397,2]
[400664893,1767775847236,-500.0,0.00027397,2]
[400664895,1767775847246,-578.09418574,0.00027397,2]
[400664897,1767775847256,-500.0,0.00027397,2]
[400664899,1767775847266,-500.0,0.00027397,2]
[400664901,1767775847275,-956.27,0.00027397,2]
[400664903,1767775847285,-500.0,0.00027397,2]
[400664905,1767775847295,-422.20830435,0.00027397,2]
[400664907,1767775847305,-500.0,0.00027397,2]
[400664909,1767775847314,-500.0,0.00027397,2]
[400664911,1767775847323,-423.19708612,0.00027397,2]
[400664913,1767775847332,-184.20155596,0.00027397,2]
[400664915,1767775847341,-500.0,0.00027397,2]
[400664917,1767775847351,-500.0,0.00027397,2]
[400664919,1767775847365,-500.0,0.00027397,2]
[400664921,1767775847375,-500.0,0.00027397,2]
[400664923,1767775847386,-500.0,0.00027397,2]
[400664925,1767775847396,-215.14710276,0.00027397,2]
[400664927,1767775847405,-500.0,0.00027397,2]
[400664929,1767775847415,-500.0,0.00027397,2]
[400664931,1767775847426,-500.0,0.00027397,2]
[400664933,1767775847435,-500.0,0.00027397,2]
[400664935,1767775847445,-500.0,0.00027397,2]
[400664937,1767775847454,-500.0,0.00027397,2]
[400664939,1767775847464,-500.0,0.00027397,2]
[400664941,1767775847475,-490.48927619,0.00027397,2]
[400664943,1767775847484,-500.0,0.00027397,2]
[400664945,1767775847494,-171.93674001,0.00027397,2]
[400664947,1767775847503,-500.0,0.00027397,2]
[400664949,1767775847512,-500.0,0.00027397,2]
[400664951,1767775847521,-500.0,0.00027397,2]
[400664953,1767775847530,-500.0,0.00027397,2]
[400664955,1767775847540,-500.0,0.00027397,2]
[400664957,1767775847550,-500.0,0.00027397,2]
[400664959,1767775847560,-500.0,0.00027397,2]
[400664961,1767775847569,-500.0,0.00027397,2]
[400664963,1767775847579,-500.0,0.00027397,2]
[400664965,1767775847588,-500.0,0.00027397,2]
[400664967,1767775847598,-375.52520677,0.00027397,2]
[400664969,1767775847607,-500.0,0.00027397,2]
[400664971,1767775847616,-500.0,0.00027397,2]
[400664973,1767775847625,-500.0,0.00027397,2]
[400664975,1767775847634,-500.0,0.00027397,2]
[400664977,1767775847643,-500.0,0.00027397,2]
[400664978,1767775847652,-500.0,0.00027397,2]
[400664980,1767775847661,-500.0,0.00027397,2]
[400664982,1767775847670,-500.0,0.00027397,2]
[400664984,1767775847680,-500.0,0.00027397,2]
[400664987,1767775847690,-500.0,0.00027397,2]
[400664988,1767775847699,-500.0,0.00027397,2]
[400664990,1767775847709,-500.0,0.00027397,2]
[400664992,1767775847719,-500.0,0.00027397,2]
[400664995,1767775847730,-500.0,0.00027397,2]
[400665005,1767775847816,-500.0,0.00027397,2]
[400665007,1767775847826,-500.0,0.00027397,2]
[400665009,1767775847836,-500.0,0.00027397,2]
[400665011,1767775847846,-200.11830071,0.00027397,2]
[400665013,1767775847855,-500.0,0.00027397,2]
[400665015,1767775847865,-500.0,0.00027397,2]
[400665017,1767775847874,-547.01642659,0.00027397,2]
[400665019,1767775847883,-500.0,0.00027397,2]
[400665021,1767775847892,-500.0,0.00027397,2]
[400665023,1767775847901,-4613.91,0.00027397,2]
[400665025,1767775847910,-364.09358379,0.00027397,2]
[400665026,1767775847920,-500.0,0.00027397,2]
[400665029,1767775847929,-500.0,0.00027397,2]
[400665031,1767775847939,-500.0,0.00027397,2]
[400665032,1767775847948,-500.0,0.00027397,2]
[400665034,1767775847957,-678.0,0.00027397,2]
[400665036,1767775847966,-14665.45,0.00027397,2]
[400665038,1767775847976,-265.18668743,0.00027397,2]
[400665040,1767775847985,-500.0,0.00027397,2]
[400665042,1767775847994,-500.0,0.00027397,2]
[400665044,1767775848003,-500.0,0.00027397,2]
[400665046,1767775848012,-245.10460636,0.00027397,2]
[400665048,1767775848021,-500.0,0.00027397,5]
[400665050,1767775848030,-500.0,0.00027397,2]
[400665052,1767775848039,-500.0,0.00027397,5]
[400665054,1767775848048,-500.0,0.00027397,5]
[400665056,1767775848057,-500.0,0.00027397,5]
[400665058,1767775848067,-500.0,0.00027397,5]
[400665060,1767775848076,-500.0,0.00027397,2]
[400665062,1767775848085,-500.0,0.00027397,5]
[400665064,1767775848094,-500.0,0.00027397,5]
[400665066,1767775848103,-500.0,0.00027397,5]
[400665068,1767775848113,-500.0,0.00027397,2]
[400665070,1767775848122,-500.0,0.00027397,5]
[400665072,1767775848131,-500.0,0.00027397,5]
[400665074,1767775848140,-500.0,0.00027397,5]
[400665076,1767775848149,-500.0,0.00027397,5]
[400665078,1767775848158,-500.0,0.00027397,5]
[400665080,1767775848167,-500.0,0.00027397,5]
[400665082,1767775848176,-500.0,0.00027397,5]
[400665084,1767775848186,-500.0,0.00027397,5]
[400665086,1767775848195,-500.0,0.00027397,5]
[400665088,1767775848205,-500.0,0.00027397,5]
[400665090,1767775848214,-428.21,0.00027397,5]
[400665092,1767775848224,-500.0,0.00027397,2]
[400665094,1767775848232,-500.0,0.00027397,2]
[400665096,1767775848242,-500.0,0.00027397,2]
[400665098,1767775848251,-500.0,0.00027397,2]
[400665100,1767775848260,-274.65446249,0.00027397,2]
[400665102,1767775848269,-500.0,0.00027397,2]
[400665104,1767775848278,-500.0,0.00027397,2]
[400665106,1767775848288,-500.0,0.00027397,2]
[400665108,1767775848297,-500.0,0.00027397,2]
[400665110,1767775848307,-500.0,0.00027397,2]
[400665112,1767775848316,-500.0,0.00027397,2]
[400665114,1767775848326,-500.0,0.00027397,2]
[400665116,1767775848335,-500.0,0.00027397,2]
[400665118,1767775848344,-236.04284079,0.00027397,2]
[400665120,1767775848353,-500.0,0.00027397,2]
[400665122,1767775848363,-500.0,0.00027397,2]
[400665124,1767775848373,-500.0,0.00027397,2]
[400665126,1767775848383,-538.47909341,0.00027397,2]
[400665129,1767775848396,-500.0,0.00027397,2]
[400665131,1767775848406,-2787.6,0.00027397,2]
[400665133,1767775848416,-506.75385299,0.00027397,2]
[400665135,1767775848425,-521.92991059,0.00027397,2]
[400665137,1767775848435,-500.0,0.00027397,2]
[400665139,1767775848445,-500.0,0.00027397,2]
[400665141,1767775848454,-500.0,0.00027397,2]
[400665143,1767775848465,-500.0,0.00027397,2]
[400665144,1767775848474,-500.0,0.00027397,2]
[400665146,1767775848483,-568.59240628,0.00027397,2]
[400665148,1767775848492,-516.11896112,0.00027397,2]
[400665150,1767775848501,-500.0,0.00027397,2]
[400665152,1767775848511,-500.0,0.00027397,2]
[400665154,1767775848520,-500.0,0.00027397,2]
[400665156,1767775848530,-661.34,0.00027397,2]
[400665158,1767775848539,-500.0,0.00027397,2]
[400665160,1767775848550,-500.0,0.00027397,2]
[400665163,1767775848559,-500.0,0.00027397,2]
[400665165,1767775848569,-500.0,0.00027397,2]
[400665166,1767775848578,-345.86721317,0.00027397,2]
[400665168,1767775848587,-500.0,0.00027397,2]
[400665170,1767775848596,-500.0,0.00027397,2]
[400665172,1767775848606,-500.0,0.00027397,2]
[400665174,1767775848617,-500.0,0.00027397,2]
[400665176,1767775848626,-500.0,0.00027397,2]
[400665178,1767775848636,-500.0,0.00027397,2]
[400665180,1767775848644,-500.0,0.00027397,2]
[400665182,1767775848654,-538.42722459,0.00027397,2]
[400665184,1767775848663,-500.0,0.00027397,2]
[400665187,1767775848673,-211.52499438,0.00027397,2]
[400665188,1767775848682,-500.0,0.00027397,2]
[400665191,1767775848692,-500.0,0.00027397,2]
[400665192,1767775848701,-500.0,0.00027397,2]
[400665194,1767775848710,-500.0,0.00027397,2]
[400665196,1767775848721,-500.0,0.00027397,2]
[400665198,1767775848730,-304.60912659,0.00027397,2]
[400665200,1767775848739,-500.0,0.00027397,2]
[400665202,1767775848750,-500.0,0.00027397,2]
[400665204,1767775848759,-500.0,0.00027397,2]
[400665206,1767775848769,-500.0,0.00027397,2]
[400665208,1767775848779,-465.25478122,0.00027397,2]
[400665210,1767775848788,-505.05,0.00027397,2]
[400665212,1767775848798,-500.0,0.00027397,2]
[400665215,1767775848807,-500.0,0.00027397,2]
[400665217,1767775848817,-353.76874161,0.00027397,2]
[400665219,1767775848826,-419.71377291,0.00027397,2]
[400665221,1767775848836,-500.0,0.00027397,2]
[400665223,1767775848846,-3024.23,0.00027397,2]
[400665225,1767775848855,-500.0,0.00027397,2]
[400665227,1767775848864,-500.0,0.00027397,2]
[400665229,1767775848874,-500.0,0.00027397,2]
[400665231,1767775848883,-500.0,0.00027397,2]
[400665233,1767775848892,-301.74446524,0.00027397,2]
[400665235,1767775848901,-717.62,0.00027397,2]
[400665237,1767775848910,-500.0,0.00027397,2]
[400665239,1767775848919,-500.0,0.00027397,2]
[400665240,1767775848928,-500.0,0.00027397,2]
[400665242,1767775848937,-500.0,0.00027397,2]
[400665244,1767775848946,-500.0,0.00027397,2]
[400665246,1767775848955,-500.0,0.00027397,2]
[400665248,1767775848964,-909.99,0.00027397,2]
[400665250,1767775848973,-500.0,0.00027397,2]
[400665252,1767775848983,-478.12849499,0.00027397,2]
[400665254,1767775848992,-500.0,0.00027397,2]
[400665256,1767775849001,-500.0,0.00027397,2]
[400665258,1767775849010,-500.0,0.00027397,2]
[400665260,1767775849019,-500.0,0.00027397,2]
[400665262,1767775849028,-500.0,0.00027397,2]
[400665264,1767775849037,-500.0,0.00027397,2]
[400665267,1767775849047,-540.06697722,0.00027397,2]
[400665269,1767775849058,-512.07253337,0.00027397,2]
[400665271,1767775849067,-2410.47,0.00027397,2]
[400665273,1767775849076,-601.36,0.00027397,2]
[400665275,1767775849087,-500.0,0.00027397,2]